bitfinex/quotes_BTCUSD_20250604
["timestamp","ask_amount","ask_price","bid_price","bid_amount"]
[1749078954258,0.26039429,104670.0,104660.0,0.24764]
[1749078954259,0.25084183,104670.0,104660.0,0.24764]
[1749078954475,0.01910812,104660.0,104640.0,0.0311]
[1749078954691,0.03821697,104660.0,104640.0,0.1269543]
[1749078954910,0.01910812,104660.0,104640.0,0.1269543]
[1749078955223,0.0286625,104660.0,104640.0,0.1269543]
[1749078955436,0.01810812,104660.0,104640.0,0.1269543]
[1749078955650,0.01910793,104660.0,104650.0,0.17402]
[1749078956090,0.02866203,104660.0,104650.0,0.17402]
[1749078956309,0.00955392,104660.0,104650.0,0.17402]
[1749078956980,0.01055392,104660.0,104650.0,0.17402]
[1749078957158,0.02010802,104660.0,104650.0,0.17402]
[1749078957315,0.02110802,104660.0,104650.0,0.17402]
[1749078957732,0.02010802,104660.0,104650.0,0.17402]
[1749078957931,0.001,104660.0,104650.0,0.17402]
[1749078958157,0.001,104660.0,104650.0,0.19052]
[1749078958319,0.01055401,104660.0,104650.0,0.19052]
[1749078958524,0.01155401,104660.0,104650.0,0.19052]
[1749078959006,0.02110821,104660.0,104650.0,0.19052]
[1749078959206,0.04021706,104660.0,104650.0,0.17402]
[1749078959412,0.02110821,104660.0,104650.0,0.17402]
[1749078959626,0.04021724,104660.0,104650.0,0.17402]
[1749078959803,0.03066259,104660.0,104650.0,0.17402]
[1749078960046,0.23131212,104660.0,104650.0,0.0163]
[1749078960267,0.02110821,104660.0,104650.0,0.17398]
[1749078960482,0.01155401,104660.0,104650.0,0.17398]
[1749078960694,0.00955484,104650.0,104640.0,0.1115543]
[1749078960909,0.03066286,104660.0,104640.0,0.2854343]
[1749078961465,0.04877225,104660.0,104640.0,0.2854343]
[1749078961895,0.001,104650.0,104640.0,0.2864343]
[1749078962526,0.001,104650.0,104640.0,0.1287543]
[1749078962742,0.001,104650.0,104640.0,0.2884343]
[1749078962961,0.001,104650.0,104640.0,0.2864343]
[1749078963201,0.0191083,104660.0,104640.0,0.2854343]
[1749078963414,0.001,104650.0,104640.0,0.2884343]
[1749078963914,0.001,104650.0,104640.0,0.2874343]
[1749078964132,0.001,104650.0,104640.0,0.5359943]
[1749078964344,0.002,104650.0,104640.0,0.5359943]
[1749078965183,0.01155484,104650.0,104640.0,0.5359943]
[1749078965401,0.002,104650.0,104640.0,0.5359943]
[1749078972239,0.002,104650.0,104640.0,0.3783143]
[1749078972451,0.002,104650.0,104640.0,0.5359943]
[1749078972868,0.04004172,104650.0,104640.0,0.5359943]
[1749078973080,0.002,104650.0,104640.0,0.5359943]
[1749078974716,0.002,104650.0,104640.0,0.56639323]
[1749078975587,0.002,104650.0,104640.0,0.36031323]
[1749078976261,0.002,104650.0,104640.0,0.31883323]
[1749078977630,0.002,104650.0,104640.0,0.2884343]
[1749078977865,0.002,104650.0,104640.0,0.3484343]
[1749078984217,0.002,104650.0,104640.0,0.5959943]
[1749078989025,0.002,104650.0,104640.0,0.3484343]
[1749078993488,0.002,104650.0,104640.0,0.1907543]
[1749078993692,0.002,104650.0,104640.0,0.3483543]
[1749078994110,0.002,104650.0,104640.0,0.5959143]
[1749078999639,0.002,104650.0,104640.0,0.3898343]
[1749079002232,0.002,104650.0,104640.0,0.3483543]
[1749079004067,0.002,104650.0,104640.0,0.5544343]
[1749079004271,0.002,104650.0,104640.0,0.5958743]
[1749079009275,0.002,104650.0,104640.0,0.36289515]
[1749079009475,0.002,104650.0,104640.0,0.42705539]
[1749079009759,0.002,104650.0,104640.0,0.39665646]
[1749079014077,0.002,104650.0,104640.0,0.64417646]
[1749079015362,0.002,104650.0,104640.0,0.64277646]
[1749079018154,0.002,104650.0,104640.0,0.43669646]
[1749079020112,0.002,104650.0,104640.0,0.39525646]
[1749079021273,0.002,104650.0,104640.0,0.68519408]
[1749079021944,0.002,104650.0,104640.0,1.02519408]
[1749079022160,0.002,104650.0,104640.0,1.42519408]
[1749079024133,0.002,104650.0,104640.0,1.75511408]
[1749079024623,0.002,104650.0,104640.0,1.72471515]
[1749079024850,0.002,104650.0,104640.0,1.64231515]
[1749079029037,0.002,104650.0,104640.0,1.43623515]
[1749079032831,0.002,104650.0,104640.0,1.39479515]
[1749079034071,0.002,104650.0,104640.0,1.72463515]
[1749079034712,0.002,104650.0,104640.0,1.64223515]
[1749079036072,0.002,104650.0,104640.0,1.67263408]
[1749079036929,0.002,104650.0,104640.0,1.46655408]
[1749079037897,0.002,104650.0,104640.0,2.12680665]
[1749079038111,0.002,104650.0,104640.0,2.15729777]
[1749079038519,0.001,104650.0,104640.0,2.15629777]
[1749079038722,0.0322,104690.0,104670.0,0.03094085]
[1749079038956,0.0322,104690.0,104680.0,0.25568213]
[1749079039198,0.0322,104690.0,104680.0,0.2532943]
[1749079040604,0.0352,104690.0,104680.0,0.2532943]
[1749079041067,0.0352,104690.0,104680.0,0.3132943]
[1749079041292,0.0392,104690.0,104680.0,0.3142943]
[1749079044118,0.0392,104690.0,104680.0,0.5616943]
[1749079049934,0.27836352,104710.0,104680.0,0.5616943]
[1749079050207,0.00014431,104700.0,104680.0,0.5616943]
[1749079051052,0.00014431,104700.0,104680.0,0.5606943]
[1749079051280,0.00014431,104700.0,104680.0,0.5626943]
[1749079051488,0.00014431,104700.0,104680.0,0.5616943]
[1749079051687,0.00014431,104700.0,104680.0,0.5606943]
[1749079051892,0.00414431,104700.0,104680.0,0.5616943]
[1749079052103,0.00814431,104700.0,104680.0,0.5626943]
[1749079052900,0.02594431,104700.0,104680.0,0.5792943]
[1749079054484,0.02594431,104700.0,104690.0,0.04136]
[1749079054485,0.03549467,104700.0,104690.0,0.04136]
[1749079054687,0.03549467,104700.0,104690.0,0.19876]
[1749079054688,0.04504512,104700.0,104690.0,0.19876]
[1749079054887,0.03549467,104700.0,104690.0,0.04136]
[1749079055149,0.23736993,104700.0,104680.0,0.062]
[1749079055331,0.00955118,104690.0,104680.0,0.061]
[1749079055582,0.00855118,104690.0,104680.0,0.2184]
[1749079055897,0.02635118,104690.0,104680.0,0.2184]
[1749079056092,0.02635118,104690.0,104680.0,0.2174]
[1749079056283,0.03590255,104690.0,104680.0,0.2174]
[1749079056633,0.0178,104690.0,104680.0,0.2174]
[1749079056859,0.0208,104690.0,104680.0,0.2174]
[1749079057067,0.03035118,104690.0,104680.0,0.2174]
[1749079057467,0.03990255,104690.0,104680.0,0.2174]
[1749079057696,0.03335118,104690.0,104680.0,0.2184]
[1749079058155,0.00955128,104690.0,104680.0,0.2184]
[1749079058366,0.01910246,104690.0,104680.0,0.2184]
[1749079058586,0.2292259,104700.0,104680.0,0.2184]
[1749079058787,0.02865218,104700.0,104680.0,0.2184]
[1749079059029,0.01910118,104700.0,104680.0,0.2184]
[1749079059229,0.02865209,104700.0,104680.0,0.2184]
[1749079059646,0.02865209,104700.0,104680.0,0.061]
[1749079059858,0.02865209,104700.0,104690.0,0.1574]
[1749079060067,0.02210118,104700.0,104680.0,0.061]
[1749079060492,0.02210118,104700.0,104680.0,0.06]
[1749079060905,0.02110118,104700.0,104680.0,0.06]
[1749079061120,0.006,104700.0,104680.0,0.0765]
[1749079061341,0.002,104700.0,104690.0,0.1726]
[1749079061785,0.004,104700.0,104690.0,0.1574]
[1749079062217,0.002,104700.0,104690.0,0.1574]
[1749079062420,0.005,104700.0,104690.0,0.1574]
[1749079062911,0.003,104700.0,104690.0,0.1574]
[1749079063125,0.006,104700.0,104690.0,0.1574]
[1749079064185,0.006,104700.0,104690.0,0.40476]
[1749079067671,0.006,104700.0,104690.0,0.43696]
[1749079071275,0.006,104700.0,104690.0,0.04132]
[1749079071480,0.0376,104700.0,104690.0,0.04132]
[1749079072339,0.0376,104700.0,104690.0,0.19868]
[1749079073555,0.0221,104700.0,104690.0,0.19868]
[1749079073766,0.0377,104700.0,104690.0,0.19868]
[1749079074181,0.0221,104700.0,104690.0,0.40472]
[1749079075029,0.006,104700.0,104690.0,0.40472]
[1749079084691,0.006,104700.0,104690.0,0.20604]
[1749079084942,0.59607442,104700.0,104690.0,0.24736]
[1749079085175,0.69382021,104700.0,104690.0,0.24736]
[1749079085423,0.69382021,104700.0,104690.0,0.40472]
[1749079085424,0.71577949,104700.0,104690.0,0.40472]
[1749079085632,0.73364136,104700.0,104690.0,0.40472]
[1749079085855,0.84068301,104700.0,104690.0,0.24736]
[1749079086085,0.88019977,104700.0,104690.0,0.40472]
[1749079086289,0.88019946,104700.0,104690.0,0.40472]
[1749079086497,0.88517911,104700.0,104690.0,0.40472]
[1749079086708,0.86433176,104700.0,104690.0,0.40472]
[1749079086917,0.88148229,104700.0,104690.0,0.40572]
[1749079087125,0.88517294,104700.0,104690.0,0.40572]
[1749079087352,0.88517145,104700.0,104690.0,0.40572]
[1749079087574,0.79666023,104700.0,104690.0,0.40572]
[1749079087993,0.79664329,104700.0,104690.0,0.40572]
[1749079088225,0.78995108,104700.0,104690.0,0.40572]
[1749079088445,0.78995107,104700.0,104690.0,0.40572]
[1749079088659,0.78353202,104700.0,104690.0,0.40572]
[1749079088882,0.80135445,104700.0,104690.0,0.40572]
[1749079089310,0.78353202,104700.0,104690.0,0.40572]
[1749079089778,0.76827596,104700.0,104690.0,0.40572]
[1749079090218,0.82010641,104700.0,104690.0,0.40572]
[1749079090433,0.82010641,104700.0,104690.0,0.24836]
[1749079090651,0.82010641,104700.0,104690.0,0.40572]
[1749079092736,0.76827596,104700.0,104690.0,0.40572]
[1749079092968,0.74595505,104700.0,104690.0,0.40572]
[1749079099147,0.73640396,104700.0,104690.0,0.40572]
[1749079099375,0.53658652,104700.0,104690.0,0.40572]
[1749079100312,0.55568843,104700.0,104690.0,0.40572]
[1749079101264,0.55568843,104700.0,104690.0,0.40576]
[1749079102376,0.55728843,104700.0,104690.0,0.40576]
[1749079102845,0.83496505,104700.0,104690.0,0.40576]
[1749079105824,0.92747627,104700.0,104690.0,0.20708]
[1749079106055,0.89636843,104700.0,104690.0,0.40576]
[1749079108581,0.61869181,104700.0,104690.0,0.40576]
[1749079109306,0.63394787,104700.0,104690.0,0.40576]
[1749079110940,0.62254449,104700.0,104690.0,0.40576]
[1749079112053,0.62254449,104700.0,104690.0,0.2484]
[1749079112307,0.55016366,104680.0,104670.0,0.0307]
[1749079112529,0.64601796,104680.0,104670.0,0.43546]
[1749079112755,0.65741962,104680.0,104670.0,0.2781]
[1749079112975,0.68607662,104680.0,104670.0,0.43546]
[1749079113404,0.69107662,104680.0,104670.0,0.43646]
[1749079113653,0.73866377,104680.0,104670.0,0.40572]
[1749079114330,0.73866377,104680.0,104670.0,0.2484]
[1749079114585,0.73866377,104680.0,104670.0,0.40572]
[1749079114818,0.75393736,104680.0,104670.0,0.40572]
[1749079115054,0.79411817,104680.0,104670.0,0.2484]
[1749079115286,0.01911067,104650.0,104630.0,0.02]
[1749079115504,0.00955575,104640.0,104630.0,0.02]
[1749079115728,0.36866624,104650.0,104640.0,0.23752]
[1749079115941,0.55977947,104650.0,104640.0,0.23752]
[1749079116450,0.36866633,104650.0,104640.0,0.24645439]
[1749079116657,0.36971438,104650.0,104640.0,0.24645439]
[1749079117067,0.37071438,104650.0,104640.0,0.25045439]
[1749079117282,0.37071438,104650.0,104640.0,0.25044629]
[1749079117916,0.56082761,104650.0,104640.0,0.25044629]
[1749079118133,0.56082761,104650.0,104640.0,0.39884]
[1749079118351,0.56182761,104650.0,104640.0,0.40776575]
[1749079119202,0.56182761,104650.0,104640.0,0.4402]
[1749079119646,0.56182761,104650.0,104640.0,0.44912132]
[1749079119858,0.59988753,104650.0,104640.0,0.44912076]
[1749079120942,0.59988753,104650.0,104640.0,0.44911789]
[1749079121175,0.59988753,104650.0,104640.0,0.4402]
[1749079121393,0.59988753,104650.0,104640.0,0.44911789]
[1749079122345,0.4087743,104650.0,104640.0,0.44911789]
[1749079122561,0.59988753,104650.0,104640.0,0.44911789]
[1749079122783,0.59988753,104650.0,104640.0,0.44911556]
[1749079123005,0.59988753,104650.0,104640.0,0.29175556]
[1749079123251,0.68618663,104650.0,104640.0,0.25043556]
[1749079123475,0.74331484,104650.0,104640.0,0.26031489]
[1749079123694,0.74331484,104650.0,104640.0,0.40876]
[1749079123945,0.74231484,104650.0,104640.0,0.40476]
[1749079124159,0.74231484,104650.0,104640.0,0.40676]
[1749079124371,0.74131484,104650.0,104640.0,0.40676]
[1749079124582,0.75370531,104650.0,104640.0,0.40476]
[1749079124800,0.77193005,104650.0,104640.0,0.40576]
[1749079124994,0.77093005,104650.0,104640.0,0.2484]
[1749079125219,0.77093005,104650.0,104640.0,0.40576]
[1749079125436,0.77493005,104650.0,104640.0,0.40576]
[1749079126090,0.80359705,104650.0,104640.0,0.40576]
[1749079126919,0.79220658,104650.0,104640.0,0.40576]
[1749079129408,0.79060658,104650.0,104640.0,0.40576]
[1749079129601,0.79220658,104650.0,104640.0,0.40576]
[1749079130394,0.79060658,104650.0,104640.0,0.40576]
[1749079130631,0.79041545,104650.0,104640.0,0.40576]
[1749079131399,0.79041545,104650.0,104640.0,0.4058]
[1749079131668,0.77519071,104650.0,104640.0,0.4058]
[1749079131871,0.73420335,104650.0,104640.0,0.4058]
[1749079132214,1.22770335,104650.0,104640.0,0.4058]
[1749079133397,1.22770335,104650.0,104640.0,0.4378]
[1749079133977,1.02703446,104650.0,104640.0,0.4378]
[1749079134206,1.0222394,104650.0,104640.0,0.4378]
[1749079134440,1.0222394,104650.0,104640.0,0.44669972]
[1749079134706,1.03179487,104650.0,104640.0,0.44669972]
[1749079134904,1.23246367,104650.0,104640.0,0.44669972]
[1749079135128,1.23246367,104650.0,104640.0,0.4378]
[1749079135399,1.22290874,104650.0,104640.0,0.4467001]
[1749079135618,1.21335354,104650.0,104640.0,0.4467001]
[1749079135847,1.20379816,104650.0,104640.0,0.44670211]
[1749079137258,1.20379816,104650.0,104640.0,0.4467032]
[1749079137480,1.20379816,104650.0,104640.0,0.4378]
[1749079137714,1.20379816,104650.0,104640.0,0.44670321]
[1749079138795,1.20379816,104650.0,104640.0,0.44670629]
[1749079139451,1.30429816,104650.0,104640.0,0.44670629]
[1749079139686,1.20379816,104650.0,104640.0,0.44670973]
[1749079139908,1.20379816,104650.0,104640.0,0.4378]
[1749079140138,1.20379816,104650.0,104640.0,0.44671065]
[1749079140818,1.20379816,104650.0,104640.0,0.44671062]
[1749079141301,1.20379816,104650.0,104640.0,0.44671064]
[1749079141532,1.20379816,104650.0,104640.0,0.44671593]
[1749079142162,1.20379816,104650.0,104640.0,0.4467168]
[1749079142368,1.20379816,104650.0,104640.0,0.4378]
[1749079142521,1.20379816,104650.0,104640.0,0.4467168]
[1749079142926,1.20379816,104650.0,104640.0,0.4378]
[1749079143157,1.20379816,104650.0,104640.0,0.44672118]
[1749079143362,1.20175305,104650.0,104640.0,0.44672118]
[1749079143570,1.20175305,104650.0,104640.0,0.44672119]
[1749079144442,1.20175305,104650.0,104640.0,0.44672199]
[1749079144854,1.2131276,104650.0,104640.0,0.44672199]
[1749079146153,1.2131276,104650.0,104640.0,0.4378]
[1749079146378,1.2131276,104650.0,104640.0,0.44672629]
[1749079147311,1.2131276,104650.0,104640.0,0.4378]
[1749079147532,1.2131276,104650.0,104640.0,0.44672763]
[1749079148415,1.2131276,104650.0,104640.0,0.44668866]
[1749079148841,1.2131276,104650.0,104640.0,0.43776]
[1749079149055,1.2131276,104650.0,104640.0,0.44668866]
[1749079149270,1.2131276,104650.0,104640.0,0.43776]
[1749079149684,1.2131276,104650.0,104640.0,0.44668861]
[1749079150104,1.2131276,104650.0,104640.0,0.43776]
[1749079150306,1.2131276,104650.0,104640.0,0.44669013]
[1749079150930,1.2131276,104650.0,104640.0,0.43776]
[1749079151137,1.2131276,104650.0,104640.0,0.44669011]
[1749079151364,1.2131276,104650.0,104640.0,0.44669073]
[1749079152001,1.2131276,104650.0,104640.0,0.43776]
[1749079152387,1.2131276,104650.0,104640.0,0.44669303]
[1749079153233,1.2131276,104650.0,104640.0,0.43776]
[1749079153643,1.2131276,104650.0,104640.0,0.44669634]
[1749079155201,1.2131276,104650.0,104640.0,0.44669732]
[1749079156938,1.2131276,104650.0,104640.0,0.44669758]
[1749079157461,1.2131276,104650.0,104640.0,0.44669757]
[1749079157881,1.2131276,104650.0,104640.0,0.44669975]
[1749079158094,1.2131276,104650.0,104640.0,0.44669974]
[1749079158307,1.2131276,104650.0,104640.0,0.43776]
[1749079158520,1.2131276,104650.0,104640.0,0.44669974]
[1749079158732,1.2131276,104650.0,104640.0,0.43776]
[1749079159376,1.2131276,104650.0,104640.0,0.44669974]
[1749079160003,1.2131276,104650.0,104640.0,0.28937974]
[1749079160214,1.2131276,104650.0,104640.0,0.44669974]
[1749079160429,1.2131276,104650.0,104640.0,0.44669996]
[1749079160642,1.2131276,104650.0,104640.0,0.43776]
[1749079160874,1.2131276,104650.0,104640.0,0.44670216]
[1749079161316,1.2131276,104650.0,104640.0,0.4368]
[1749079161538,1.2131276,104650.0,104640.0,0.25642216]
[1749079161762,1.2131276,104650.0,104640.0,0.05022216]
[1749079161984,1.2131276,104650.0,104640.0,0.05022233]
[1749079162256,1.2131276,104650.0,104640.0,0.04128]
[1749079162469,1.2131276,104650.0,104640.0,0.05022233]
[1749079162683,1.2131276,104650.0,104640.0,0.20754654]
[1749079163280,1.2131276,104650.0,104640.0,0.20754657]
[1749079163701,1.2131276,104650.0,104640.0,0.1986]
[1749079163911,1.2131276,104650.0,104640.0,0.20754657]
[1749079164135,1.2131276,104650.0,104640.0,0.4048]
[1749079164352,1.2131276,104650.0,104640.0,0.41374657]
[1749079164562,1.2131276,104650.0,104640.0,0.44624657]
[1749079165185,1.2131276,104650.0,104640.0,0.4373]
[1749079165635,1.2131276,104650.0,104640.0,0.44624655]
[1749079166945,1.2131276,104650.0,104640.0,0.4373]
[1749079167154,1.2131276,104650.0,104640.0,0.44624671]
[1749079167384,1.2131276,104650.0,104640.0,0.44624672]
[1749079167591,1.2131276,104650.0,104640.0,0.4373]
[1749079167791,1.2131276,104650.0,104640.0,0.44624671]
[1749079168865,1.2131276,104650.0,104640.0,0.44624677]
[1749079170140,1.2131276,104650.0,104640.0,0.44620677]
[1749079170388,1.2131276,104650.0,104640.0,0.43726]
[1749079170633,1.2131276,104650.0,104640.0,0.44620694]
[1749079170892,1.2131276,104650.0,104640.0,0.43726]
[1749079171152,1.2131276,104650.0,104640.0,0.44620694]
[1749079171390,1.2131276,104650.0,104640.0,0.44620691]
[1749079171634,1.22829367,104650.0,104640.0,0.44620691]
[1749079171856,1.21691912,104650.0,104640.0,0.44620691]
[1749079172559,1.21691912,104650.0,104640.0,0.44620711]
[1749079174004,1.22835249,104650.0,104640.0,0.44620711]
[1749079174233,1.22835249,104650.0,104640.0,0.44620735]
[1749079174454,1.22835249,104650.0,104640.0,0.44620734]
[1749079175519,1.22835249,104650.0,104640.0,0.41370734]
[1749079175981,1.22835249,104650.0,104640.0,0.41370754]
[1749079176218,1.22835249,104650.0,104640.0,0.41370755]
[1749079176451,1.22835249,104650.0,104640.0,0.40476]
[1749079176666,1.22835249,104650.0,104640.0,0.41370757]
[1749079176892,1.22835249,104650.0,104640.0,0.41370758]
[1749079177620,1.22835249,104650.0,104640.0,0.40476]
[1749079177861,1.22835249,104650.0,104640.0,0.4137072]
[1749079178068,1.21691912,104650.0,104640.0,0.41370721]
[1749079178291,1.21691912,104650.0,104640.0,0.24748]
[1749079178512,1.21691912,104650.0,104640.0,0.25642729]
[1749079178728,1.21691912,104650.0,104640.0,0.41370731]
[1749079179365,1.21691912,104650.0,104640.0,0.41370572]
[1749079181747,1.21691912,104650.0,104640.0,0.41370563]
[1749079181938,1.21691912,104650.0,104640.0,0.40476]
[1749079182153,1.21691912,104650.0,104640.0,0.41370563]
[1749079182340,1.21691912,104650.0,104640.0,0.21514563]
[1749079182568,1.21691912,104650.0,104640.0,0.41366563]
[1749079182988,1.23145997,104650.0,104640.0,0.25638563]
[1749079183211,1.23145997,104650.0,104640.0,0.24744]
[1749079183212,1.33997119,104650.0,104640.0,0.24744]
[1749079183465,1.47228871,104650.0,104640.0,0.41366512]
[1749079183693,0.55028418,104620.0,104610.0,0.0165]
[1749079183928,0.64613848,104620.0,104610.0,0.43752]
[1749079184151,0.6575637,104620.0,104610.0,0.44646709]
[1749079184370,0.6862367,104620.0,104610.0,0.44646709]
[1749079184597,0.6862367,104620.0,104610.0,0.44645179]
[1749079184798,0.6862367,104620.0,104610.0,0.43752]
[1749079185043,0.6882367,104620.0,104610.0,0.43752]
[1749079185377,0.4107714,104620.0,104610.0,0.4464515]
[1749079185470,0.40990421,104620.0,104610.0,0.4464509]
[1749079185695,0.40890495,104620.0,104610.0,0.4464509]
[1749079186180,0.40890495,104620.0,104610.0,0.43852]
[1749079186181,0.59151577,104620.0,104610.0,0.43852]
[1749079186669,0.59151577,104620.0,104610.0,0.4474505]
[1749079186889,0.59151577,104620.0,104610.0,0.44745047]
[1749079187113,0.59151577,104620.0,104610.0,0.44745042]
[1749079187260,0.59251577,104620.0,104610.0,0.44645036]
[1749079187462,0.59351577,104620.0,104610.0,0.44845036]
[1749079187709,0.58951577,104620.0,104610.0,0.44845036]
[1749079188133,0.62067634,104620.0,104610.0,0.44845036]
[1749079188280,0.62067634,104620.0,104610.0,0.44844695]
[1749079188473,0.62067634,104620.0,104610.0,0.43952]
[1749079188884,0.62067634,104620.0,104610.0,0.44844696]
[1749079189302,0.62067634,104620.0,104610.0,0.44844518]
[1749079189751,0.62067634,104620.0,104610.0,0.43952]
[1749079189960,0.62067634,104620.0,104610.0,0.44844459]
[1749079190386,0.62067634,104620.0,104610.0,0.43952]
[1749079190611,0.62067634,104620.0,104610.0,0.44844459]
[1749079191419,0.62067634,104620.0,104610.0,0.44844349]
[1749079191684,0.61111831,104620.0,104610.0,0.28224]
[1749079191895,0.41994936,104620.0,104610.0,0.24744]
[1749079192114,0.42950757,104620.0,104610.0,0.04124]
[1749079192310,0.43906597,104620.0,104610.0,0.04124]
[1749079192518,0.630234,104620.0,104610.0,0.04124]
[1749079192723,0.42950757,104620.0,104610.0,0.04124]
[1749079192938,0.43906588,104620.0,104610.0,0.04124]
[1749079193252,0.41039133,104620.0,104610.0,0.19996]
[1749079193521,0.07994936,104620.0,104610.0,0.19996]
[1749079194202,0.07994936,104620.0,104610.0,0.40616]
[1749079194414,0.09906497,104620.0,104610.0,0.40616]
[1749079194628,0.08950685,104620.0,104610.0,0.40616]
[1749079194830,0.08950685,104620.0,104610.0,0.42226]
[1749079195051,0.08950685,104620.0,104610.0,0.43806]
[1749079196178,0.06034628,104620.0,104610.0,0.43806]
[1749079196397,0.07946252,104620.0,104610.0,0.43806]
[1749079197496,0.36648485,104620.0,104610.0,0.2381]
[1749079197720,0.36648485,104620.0,104610.0,0.43826]
[1749079197721,0.34736997,104620.0,104610.0,0.43826]
[1749079197936,0.33781194,104620.0,104610.0,0.43826]
[1749079198156,0.67781194,104620.0,104610.0,0.43826]
[1749079199961,0.67781194,104620.0,104610.0,0.40636]
[1749079200392,0.67781194,104620.0,104610.0,0.43856]
[1749079201813,0.70664572,104620.0,104610.0,0.43856]
[1749079202040,0.70664572,104620.0,104610.0,0.27964]
[1749079202267,0.70664572,104620.0,104610.0,0.43892]
[1749079203929,0.70664572,104620.0,104610.0,0.4478448]
[1749079204378,0.70664572,104620.0,104610.0,0.44784473]
[1749079204625,0.70664572,104620.0,104610.0,0.43892]
[1749079204848,0.70664572,104620.0,104610.0,0.44784456]
[1749079205079,0.70664572,104620.0,104610.0,0.44784455]
[1749079206001,0.70664572,104620.0,104610.0,0.28856755]
[1749079206215,0.70664572,104620.0,104610.0,0.44784756]
[1749079206658,0.70664572,104620.0,104610.0,0.43892]
[1749079206870,0.70664572,104620.0,104610.0,0.44784755]
[1749079207099,0.69708751,104620.0,104610.0,0.44784755]
[1749079207558,0.71228751,104620.0,104610.0,0.21513136]
[1749079207787,0.71228751,104620.0,104610.0,0.41565172]
[1749079208015,0.71228751,104620.0,104610.0,0.41565183]
[1749079209415,0.71228751,104620.0,104610.0,0.40672]
[1749079209632,0.72838751,104620.0,104610.0,0.41565544]
[1749079210280,0.72838751,104620.0,104610.0,0.24744]
[1749079210501,0.72838751,104620.0,104610.0,0.41553559]
[1749079210950,0.72838751,104620.0,104610.0,0.41553562]
[1749079211190,0.72838751,104620.0,104610.0,0.25637562]
[1749079211462,0.02868177,104590.0,104580.0,0.004]
[1749079211701,0.29663803,104590.0,104580.0,0.42642]
[1749079212159,0.66531703,104590.0,104580.0,0.26718]
[1749079212405,0.66531703,104590.0,104580.0,0.42662]
[1749079212637,0.66531703,104590.0,104580.0,0.42666]
[1749079212858,0.66531703,104590.0,104580.0,0.42714271]
[1749079213082,0.66631703,104590.0,104580.0,0.42914271]
[1749079213311,0.66631703,104590.0,104580.0,0.42714271]
[1749079213561,0.66631703,104590.0,104580.0,0.21072271]
[1749079213790,0.66631703,104590.0,104580.0,0.41452271]
[1749079215179,0.66831703,104590.0,104580.0,0.41452271]
[1749079216194,0.70196198,104590.0,104580.0,0.41452271]
[1749079216579,0.70196198,104590.0,104580.0,0.43082271]
[1749079217018,0.70196198,104590.0,104580.0,0.41452271]
[1749079217447,0.45318515,104590.0,104580.0,0.41452271]
[1749079217659,0.64440802,104590.0,104580.0,0.41452271]
[1749079217908,0.64440802,104590.0,104580.0,0.25420271]
[1749079218135,0.64440802,104590.0,104580.0,0.41476271]
[1749079218352,0.66060802,104590.0,104580.0,0.43480271]
[1749079218797,0.67620802,104590.0,104580.0,0.43480271]
[1749079220414,0.83326009,104590.0,104580.0,0.27424271]
[1749079220641,1.32676009,104590.0,104580.0,0.42525344]
[1749079220864,1.23424887,104590.0,104580.0,0.42525344]
[1749079221081,1.23424887,104590.0,104580.0,0.41570417]
[1749079221760,1.23224887,104590.0,104580.0,0.41570417]
[1749079221977,1.23624887,104590.0,104580.0,0.41570417]
[1749079222196,0.54082213,104570.0,104560.0,0.0321]
[1749079222423,0.35912639,104560.0,104530.0,0.07594096]
[1749079222634,0.35912639,104560.0,104530.0,0.17193957]
[1749079222852,0.38781139,104560.0,104530.0,0.17193957]
[1749079223268,0.4069387,104560.0,104540.0,0.16052]
[1749079223494,0.0669387,104560.0,104540.0,0.16942382]
[1749079223994,0.0679387,104560.0,104540.0,0.16942382]
[1749079224214,0.0765024,104560.0,104550.0,0.40936]
[1749079224427,0.06793852,104560.0,104550.0,0.41826389]
[1749079224642,0.04881139,104560.0,104550.0,0.41826352]
[1749079224849,0.05937491,104560.0,104550.0,0.41826352]
[1749079225087,0.08750781,104560.0,104550.0,0.41826352]
[1749079225514,0.07794429,104560.0,104550.0,0.44986032]
[1749079225729,0.08750781,104560.0,104550.0,0.44986033]
[1749079225947,0.08650781,104560.0,104550.0,0.44096]
[1749079226168,0.08650781,104560.0,104550.0,0.44986033]
[1749079226388,0.0779442,104560.0,104550.0,0.44986033]
[1749079226608,0.08750762,104560.0,104550.0,0.44986074]
[1749079227470,0.06838096,104560.0,104550.0,0.44986073]
[1749079227686,0.07794411,104560.0,104550.0,0.44986073]
[1749079228127,0.08750735,104560.0,104550.0,0.44986073]
[1749079228356,0.0588179,104560.0,104550.0,0.44985929]
[1749079229025,0.0588179,104560.0,104550.0,0.24677929]
[1749079229236,0.0588179,104560.0,104550.0,0.44989929]
[1749079229466,0.0588179,104560.0,104550.0,0.4498999]
[1749079229682,0.0588179,104560.0,104550.0,0.44989989]
[1749079230663,0.0588179,104560.0,104550.0,0.44989987]
[1749079230865,0.0588179,104560.0,104550.0,0.441]
[1749079231409,0.0588179,104560.0,104550.0,0.44989987]
[1749079231623,0.0588179,104560.0,104550.0,0.44990164]
[1749079231835,0.0588179,104560.0,104550.0,0.441]
[1749079232043,0.0588179,104560.0,104550.0,0.44990164]
[1749079232396,0.0588179,104560.0,104550.0,0.44990161]
[1749079232607,0.002,104560.0,104550.0,0.4499016]
[1749079232820,0.002,104560.0,104550.0,0.44990114]
[1749079233026,0.002,104560.0,104550.0,0.44990111]
[1749079233253,0.002,104560.0,104550.0,0.441]
[1749079233434,0.002,104560.0,104550.0,0.44990091]
[1749079234043,0.002,104560.0,104550.0,0.54575521]
[1749079234725,0.002,104560.0,104550.0,0.54575707]
[1749079234901,0.002,104560.0,104550.0,0.5368543]
[1749079235327,0.002,104560.0,104550.0,0.54576178]
[1749079235542,0.002,104560.0,104550.0,0.54556178]
[1749079235753,0.002,104560.0,104550.0,0.34264178]
[1749079235958,0.002,104560.0,104550.0,0.54556178]
[1749079236167,0.002,104560.0,104550.0,0.5366543]
[1749079236392,0.002,104560.0,104550.0,0.54556381]
[1749079236606,0.002,104560.0,104550.0,0.5366543]
[1749079237053,0.002,104560.0,104550.0,0.54556381]
[1749079238129,0.002,104560.0,104550.0,0.54557353]
[1749079238563,0.002,104560.0,104550.0,0.5366543]
[1749079238765,0.002,104560.0,104550.0,0.54557348]
[1749079238996,0.002,104560.0,104550.0,0.54557349]
[1749079239546,0.002,104560.0,104550.0,0.54557493]